Cogmind - Beta 13 @@@ ROGUE MODE // 2024.03.27 @ 15:13:33 Player: f_ Result: Destroyed by D-53 Grenadier with Mini Grenade Launcher Performance ------------- Evolutions (1) 500 Regions Visited (4) 800 Robots Destroyed (24) 120 Value Destroyed (569) 569 Prototype IDs (3) 60 Alien Tech Used (0) 0 Bonus (0) 0 TOTAL SCORE: 2049 Bonus ------- None Cogmind --------- Core Integrity 0/400 Matter 147/300 Energy 100/100 System Corruption 10% Temperature Cool (0) Movement Rolling (175) Ox5 Location -9/Mines Parts ------- > --- POWER (1) -------- (None) > --- PROPULSION (2) --- Compact Wheel > --- UTILITY (4) ------ Huge Storage Unit Weapon Shielding Light Armor Plating Hacking Suite > --- WEAPON (2) ------- Improved Light Cannon > --- INVENTORY (25) --- Improved Ion Engine Light Nuclear Core Light Angular Momentum Engine Improved Heat Sink Machine Analyzer Sensor Array Signal Interpreter Core Shielding Core Shielding Core Shielding Power Shielding Propulsion Shielding Utility Shielding Light Armor Plating Recalibrator Heavy Assault Rifle Datajack Peak State ------------ > --- POWER ------------ Heavy Ion Engine > --- PROPULSION ------- Wheel Wheel > --- UTILITY ---------- Huge Storage Unit Light Armor Plating Light Armor Plating Hacking Suite > --- WEAPON ----------- Beam Rifle Beam Rifle > --- INVENTORY -------- Improved Ion Engine Light Nuclear Core Light Angular Momentum Engine Compact Wheel Compact Wheel Improved Heat Sink Machine Analyzer Sensor Array Sensor Array Signal Interpreter Core Shielding Core Shielding Core Shielding Power Shielding Propulsion Shielding Utility Shielding Weapon Shielding Light Armor Plating Light Armor Plating Light Armor Plating Recalibrator Heavy Assault Rifle Improved Light Cannon Grenade Launcher Datajack [Rating: 19] Favorites ----------- Power Light Nuclear Core Engine Heavy Ion Engine Power Core Light Nuclear Core Propulsion Wheel Wheel Wheel Utility Light Armor Plating Storage Huge Storage Unit Hackware Hacking Suite Protection Light Armor Plating Weapon Small Laser Energy Gun Small Laser Ballistic Gun Assault Rifle Ballistic Cannon Improved Light Cannon Launcher Rocket Launcher Slashing Weapon Mining Claw Special Melee Weapon Datajack Build | -11 -10 -10 -9 -9 ------- Run | Yrd Mat Min Mat Min Slots Evolved 2 | . . . 2 . Power . | . . . . . Propulsion . | . . . . . Utility 2 | . . . 2 . Weapon . | . . . . . Parts Attached 33 | 7 9 2 8 7 Power 4 | 1 2 . 1 . Engine 3 | 1 1 . 1 . Core 1 | . 1 . . . Reactor . | . . . . . Propulsion 6 | 2 2 . 1 1 Treads . | . . . . . Leg . | . . . . . Wheel 6 | 2 2 . 1 1 Hover . | . . . . . Flight . | . . . . . Utility 10 | 1 3 . 4 2 Device . | . . . . . Storage 3 | 1 2 . . . Processor . | . . . . . Hackware 1 | . . . 1 . Protection 6 | . 1 . 3 2 Artifact . | . . . . . Weapon 13 | 3 2 2 2 4 Energy Gun 6 | 1 2 . 2 1 Energy Cannon . | . . . . . Ballistic Gun 2 | 2 . . . . Ballistic Cannon 1 | . . . . 1 Launcher 2 | . . . . 2 Special Weapon . | . . . . . Impact Weapon . | . . . . . Slashing Weapon 1 | . . 1 . . Piercing Weapon . | . . . . . Special Melee Weapon 1 | . . 1 . . Unidentified Prototypes 1 | . . . 1 . Parts Lost 15 | . 4 . 2 9 Power 2 | . 1 . . 1 Propulsion 4 | . 1 . 1 2 Utility 3 | . . . 1 2 Weapon 6 | . 2 . . 4 Highest Loss Streak 7 | . 2 . 2 7 To Critical Strikes . | . . . . . Average Slot Usage (%) 92 | . 90 100 94 82 Engine 2 | . 1 . 2 10 Core 9 | . 11 14 8 . Wheel 24 | . 27 28 21 13 Storage 12 | . 14 14 11 11 Hackware 3 | . . . 9 11 Protection 13 | . 9 14 19 16 Energy Gun 18 | . 18 14 21 13 Ballistic Gun 2 | . 5 . . . Special Melee Weapon 1 | . . 8 . . Naked Turns . | . . . . . Heaviest Build 100 | 14 90 91 100 100 Greatest Support 32 | 32 32 20 26 26 Greatest Overweight (x) 9 | . 4 4 9 6 Average Overweight (x) 2 | . 2 4 3 3 Largest Inventory Capacity 25 | 8 25 25 25 25 Average Capacity 21 | 7 18 25 25 25 Most Carried 25 | 4 14 22 25 23 Average Carried 14 | 1 8 15 23 20 Final Capacity 25 | 8 25 25 25 25 Final Carried 22 | 2 14 22 22 17 Class Distribution -------------------- 84% | Scavenger-Mutant 15% | Mutant Dominant Class ---------------- Scavenger-Mutant | -10/Materials Scavenger-Mutant | -10/Mines Scavenger-Mutant | -9/Materials Mutant | -9/Mines Resources | -11 -10 -10 -9 -9 ----------- Run | Yrd Mat Min Mat Min Matter Collected 556 | 172 248 20 116 . Remotely . | . . . . . Salvage Created 745 | . 374 . 351 20 Parts 58 | . 27 . 31 . Haulers Intercepted 3 | . 2 . 1 . Recyclers Shooed . | . . . . . Parts Field Recycled . | . . . . . Retrieved Matter . | . . . . . Parts Self-Destructed . | . . . . . Prevented . | . . . . . Kills | -11 -10 -10 -9 -9 ------- Run | Yrd Mat Min Mat Min Combat Hostiles Destroyed 27 | . 6 . 8 13 Guns 13 | . 5 . 7 1 AOE 13 | . 1 . . 12 Classes Destroyed 8 | . 4 . 3 1 Hauler 3 | . 2 . 1 . Mechanic 1 | . . . 1 . Operator 2 | . 1 . 1 . Watcher 4 | . 2 . 2 . Swarmer 4 | . . . 4 . Grunt 9 | . 6 . 3 . Sentry 1 | . . . 1 . Assembled 13 | . . . . 13 Best Kill Streak 13 | . 5 . 4 13 Combat Bots Only 13 | . 4 . 4 13 Max Kills in Single Turn 3 | . 1 . 1 3 Gunslinging . | . . . . . Exploded 3 | . 1 . . 3 Melee . | . . . . . Uniques/NPCs Destroyed . | . . . . . Combat | -11 -10 -10 -9 -9 -------- Run | Yrd Mat Min Mat Min Hostile Shots Fired 113 | . 23 . 30 60 Missed 29 | . 8 . 6 15 Damage Taken 1823 | . 436 . 240 1147 Core 472 | . 63 . 22 387 Absorbed by Shields . | . . . . . Redirected to Shielding 47 | . . . . 47 Core Remaining (%) 87 | 100 . 74 . . Volleys Fired 90 | 1 37 2 33 17 Largest 2 | 2 2 1 2 2 Hottest 112 | 60 80 40 112 112 Shots Fired 157 | 2 69 2 64 20 Gun 143 | 2 69 2 64 6 Cannon 4 | . . . . 4 Launcher 10 | . . . . 10 Special . | . . . . . Kinetic 29 | 1 24 . . 4 Thermal 100 | . 28 2 64 6 Explosive 10 | . . . . 10 Electromagnetic 18 | 1 17 . . . Robot Hit Streak 11 | 1 11 . 11 6 Robot Miss Streak 3 | 1 3 . 3 2 Penetration Max . | . . . . . Secondary Targets . | . . . . . Shots Hit Robots 97 | 1 45 1 39 11 Core Hits 63 | . 21 . 18 24 Critical Kills . | . . . . . Critical Parts Destroyed . | . . . . . Critical Strikes 5 | . . . 4 1 Burn 5 | . . . 4 1 Melee Attacks 5 | . . 5 . . Impact . | . . . . . Slashing 4 | . . 4 . . Piercing . | . . . . . Sneak Attacks 1 | . . 1 . . Combat Hostiles . | . . . . . Follow-up Attacks . | . . . . . Damage Inflicted 2221 | 25 637 . 592 967 Guns 1222 | 25 546 . 592 59 Cannons 47 | . . . . 47 Explosions 952 | . 91 . . 861 Melee . | . . . . . Ramming . | . . . . . Kinetic 233 | 10 176 . . 47 Thermal 902 | . 251 . 592 59 Explosive 861 | . . . . 861 Electromagnetic 225 | 15 210 . . . Impact . | . . . . . Slashing . | . . . . . Piercing . | . . . . . Highest Corruption 10 | . . . . 10 Average Corruption 9 | . . . . 9 Corruption Purged . | . . . . . Corruption Blocked . | . . . . . Effects 3 | . . . . 3 Heat Flow Errors 2 | . . . . 2 Energy Discharges 1 | . . . . 1 Overload Shots . | . . . . . Overflow Damage 121 | . 85 . . 36 Projectiles . | . . . . . Explosions 121 | . 85 . . 36 Melee . | . . . . . Knockbacks 1 | . . . . 1 Impact . | . . . . . Kinetic 1 | . . . . 1 Secondary . | . . . . . Self-Inflicted Damage 331 | . 257 . . 74 Shots 9 | . 6 . . 3 Rammed . | . . . . . Targets Rammed . | . . . . . Kicked . | . . . . . Crushed . | . . . . . Highest Temperature 432 | . 144 20 432 299 Average Temperature 106 | . 29 11 154 92 Received Heat Transfer 282 | . 105 . 57 120 Effects 12 | . . . 10 2 Shutdowns 1 | . . . 1 . Energy Bleed 2 | . . . 2 . Interference 6 | . . . 4 2 Matter Decay 1 | . . . 1 . Damage (minor) 2 | . . . 2 . Siege Activations . | . . . . . Robots Corrupted . | . . . . . Combat Hostiles . | . . . . . Parts Fried 3 | . 3 . . . Impact Corruptions . | . . . . . Robots Melted 1 | . . . 1 . Combat Hostiles 1 | . . . 1 . Parts Melted 7 | . . . 7 . Heat Transferred 2587 | . 575 . 1790 222 Parts Sabotaged . | . . . . . Parts Stolen . | . . . . . Parts Stripped . | . . . . . Power Chain Reactions 2 | . 2 . . . Alert | -11 -10 -10 -9 -9 ------- Run | Yrd Mat Min Mat Min Peak Influence 282 | . 282 29 272 105 Initial 105 | . . 13 11 105 Average 99 | . 127 18 113 89 Maximum Alert Level 1 | . 1 . 1 . Low Security (%) 77 | 100 61 100 81 100 Level 1 22 | . 38 . 18 . Level 2 . | . . . . . Level 3 . | . . . . . Level 4 . | . . . . . Level 5 . | . . . . . High Security . | . . . . . Max Security . | . . . . . Squads Dispatched 4 | . 2 . 2 . Investigation 1 | . . . 1 . Extermination . | . . . . . Reinforcement 3 | . 2 . 1 . Assault . | . . . . . Garrison . | . . . . . Intercept . | . . . . . Searches Triggered . | . . . . . Construction Impeded . | . . . . . Haulers Reinforced . | . . . . . Active Scanning Responses . | . . . . . Cargo Convoy Interrupts . | . . . . . Stealth | -11 -10 -10 -9 -9 --------- Run | Yrd Mat Min Mat Min Distress Signals 1 | . 1 . . . Communications Jammed . | . . . . . Distress Signals . | . . . . . Times Spotted 52 | . 10 2 18 22 Peak Tracking Total 10 | . 3 2 4 10 Tactical Retreats 2 | . . . 2 . Traps | -11 -10 -10 -9 -9 ------- Run | Yrd Mat Min Mat Min Traps Triggered . | . . . . . Indirectly . | . . . . . Trap Hack Attempts . | . . . . . Triggered . | . . . . . Disarmed . | . . . . . Reprogrammed . | . . . . . Reused . | . . . . . Traps Extracted . | . . . . . Installed . | . . . . . Triggered . | . . . . . Machines | -11 -10 -10 -9 -9 ---------- Run | Yrd Mat Min Mat Min Machines Disabled 5 | . 5 . . . Max in Single Turn 3 | . 3 . . . Machines Repaired . | . . . . . Machines Dismantled . | . . . . . Machines Sabotaged . | . . . . . Overloaded Fab Kills . | . . . . . Hacking | -11 -10 -10 -9 -9 --------- Run | Yrd Mat Min Mat Min Machines Accessed 7 | . 4 . 3 . Terminals 6 | . 4 . 2 . Fabricators . | . . . . . Repair Stations . | . . . . . Recycling Units . | . . . . . Scanalyzers 1 | . . . 1 . Garrison Access . | . . . . . Total Hacks 23 | . 9 . 14 . Successful 17 | . 6 . 11 . Failed 6 | . 3 . 3 . Catastrophic 1 | . 1 . . . Database Lockouts . | . . . . . Manual . | . . . . . Terminals 15 | . 9 . 6 . Fabricators . | . . . . . Repair Stations . | . . . . . Recycling Units . | . . . . . Scanalyzers 8 | . . . 8 . Garrison Access . | . . . . . Terminal Hacks 9 | . 6 . 3 . Record 1 | . . . 1 . Robot Analysis 1 | . . . 1 . Prototype ID Bank 1 | . 1 . . . Terminal Index 1 | . 1 . . . Alert Level 1 | . 1 . . . Unreport Threat 1 | . 1 . . . Locate Traps 2 | . 1 . 1 . Transport Status 1 | . 1 . . . Fabricator Hacks . | . . . . . Repair Station Hacks . | . . . . . Recycling Unit Hacks . | . . . . . Scanalyzer 8 | . . . 8 . Insert Component 4 | . . . 4 . Analyze 4 | . . . 4 . Garrison Access Hacks . | . . . . . Unauthorized Hacks . | . . . . . Terminals . | . . . . . Fabricators . | . . . . . Repair Stations . | . . . . . Recycling Units . | . . . . . Scanalyzers . | . . . . . Garrison Access . | . . . . . Data Cores Recovered . | . . . . . Used . | . . . . . Hacking Detections 6 | . 3 . 3 . Full Trace Events 1 | . . . 1 . Feedback Events . | . . . . . Feedback Blocked . | . . . . . Robot Schematics Acquired . | . . . . . Robots Built . | . . . . . Authchips . | . . . . . Time . | . . . . . Total Robot Build Rating . | . . . . . Part Schematics Acquired 4 | . . . 4 . Parts Built . | . . . . . Authchips . | . . . . . Time . | . . . . . Total Part Build Rating . | . . . . . Parts Repaired . | . . . . . Time . | . . . . . Parts Recycled . | . . . . . Recycled Matter . | . . . . . Retrieved Matter . | . . . . . Retrieved Components . | . . . . . Parts Scanalyzed 4 | . . . 4 . Part Schematics Acquired 4 | . . . 4 . Parts Damaged . | . . . . . Bothacking | -11 -10 -10 -9 -9 ------------ Run | Yrd Mat Min Mat Min Used RIF Installer . | . . . . . Robots Hacked 1 | . . 1 . . Non-combat 1 | . . 1 . . Combat . | . . . . . Robot Hacks Applied 1 | . . 1 . . no_distress 1 | . . 1 . . Relay Couplers Released . | . . . . . Fabnet Peak Effective % . | . . . . . Robots Rewired . | . . . . . Allies Hacked . | . . . . . Hacks Repelled . | . . . . . Allies | -11 -10 -10 -9 -9 -------- Run | Yrd Mat Min Mat Min Total Allies 1 | . . 1 . . Largest Group 1 | . . 1 1 . Highest-Rated Group 31 | . . 31 31 . Highest-Rated Ally 31 | . . 31 31 . Total Orders . | . . . . . Ally Attacks 7 | . . . 7 . Total Damage 81 | . . . 81 . Kills . | . . . . . Allies Corrupted . | . . . . . Allies Melted . | . . . . . Intel | -11 -10 -10 -9 -9 ------- Run | Yrd Mat Min Mat Min Robot Analysis Total 1 | . . . 1 . Derelict Logs Recovered . | . . . . . Drone Launches . | . . . . . Drone Recoveries . | . . . . . Exploration | -11 -10 -10 -9 -9 ------------- Run | Yrd Mat Min Mat Min Turns Passed 1425 | 56 642 207 392 128 Spaces Moved 802 | 41 405 127 180 49 Core 6 | 6 . . . . Treads . | . . . . . Legs . | . . . . . Wheels 796 | 35 405 127 180 49 Hover . | . . . . . Flight . | . . . . . Fastest Speed 50 | 50 80 140 135 135 Average Speed 126 | 92 116 140 139 151 Slowest Speed 215 | 100 140 140 215 190 Overloaded Moves . | . . . . . Propulsion Burnouts . | . . . . . Robots Hopped . | . . . . . Cave-ins Triggered 1 | . . . . 1 Exploration Rate (%) 21 | 3 51 24 19 11 Regions Visited 4 Branch Regions 2 Pre-discovered Areas . | . . . . . Known Exits Taken . | . . . . . Unknown Exits Taken 4 | 1 1 1 1 . Scrap Searched 1 | . . 1 . . Spaces Dug 1 | . . 1 . . Terrain Destroyed 105 | . 45 1 . 59 Melee 1 | . . 1 . . Projectile 2 | . . . . 2 AOE 102 | . 45 . . 57 Terrain Rammed . | . . . . . Walls Destroyed . | . . . . . Machines Disabled . | . . . . . Actions | -11 -10 -10 -9 -9 --------- Run | Yrd Mat Min Mat Min Total 1047 | 56 506 145 258 82 Wait 63 | . 31 2 22 8 Move 798 | 40 404 126 179 49 Hop . | . . . . . Pick Up 48 | 8 21 8 10 1 Fast Attach . | . . . . . Attach 22 | 6 6 . 4 6 Detach . | . . . . . Swap 11 | 1 3 2 4 1 Drop 10 | . 4 . 6 . Fire 90 | 1 37 2 33 17 Melee 5 | . . 5 . . Ram . | . . . . . Kick . | . . . . . Crush . | . . . . . Escape Stasis . | . . . . . Rewire . | . . . . . Trap . | . . . . . Miscellaneous . | . . . . . Route ------- -11/Scrapyard -10/Materials (discovered 3 exits: *Mat x2 / [*Min]) -10/Mines -9/Materials -9/Mines History --------- Turn | Location | Event 11 | -11/Scrapyard | Discovered new exit (range 16) 57 | -11/Scrapyard | Entered Materials 101 | -10/Materials | Discovered new exit (range 5) 408 | -10/Materials | Discovered new exit (range 15) 471 | -10/Materials | Discovered new exit (range 16) 475 | -10/Materials | Build established: Scavenger-Mutant 699 | -10/Materials | Entered Mines 734 | -10/Mines | Received a Mining Laser from a helpful Derelict 839 | -10/Mines | Discovered new exit (range 9) 846 | -10/Mines | Joined a pair of Derelicts in attacking an 0b10 outpost 906 | -10/Mines | Entered Materials 906 | -9/Materials | Accompanied by 1 ally 906 | -9/Materials | Evolved 2 slots: Utility x2 1277 | -9/Materials | Discovered new exit (range 12) 1298 | -9/Materials | Entered Mines 1305 | -9/Mines | Received a Rocket Launcher from a helpful Derelict 1331 | -9/Mines | Met a Derelict bent on vengeance 1333 | -9/Mines | Assembled infested the area 1367 | -9/Mines | System corruption reached 10% 1408 | -9/Mines | Destroyed 13 combat bots 1409 | -9/Mines | Lost 7 parts (2n2u3w) 1410 | -9/Mines | Core integrity fell below 50% 1420 | -9/Mines | Crushed by falling debris 1420 | -9/Mines | Core integrity fell below 20% 1426 | -9/Mines | Destroyed by D-53 Grenadier with Mini Grenade Launcher Last Messages --------------- 01384_ as-95511 knocked back. 01387_ The unstable cave ceiling collapses. 01387_ as-95511 suffers critical hit (Burn). 01387_ as-95511 destroyed. 01388_ The unstable cave ceiling collapses. 01390_ System corrupted: Heat flow error (+291). 01394_ The unstable cave ceiling collapses. 01396_ Overheating: System interference. 01396_ Imp. Light Cannon temporarily disabled. 01397_ The unstable cave ceiling collapses. 01413_ Hvy. Ion Engine destroyed. 01413_ as-96656 destroyed. 01413_ as-08896 destroyed. 01414_ System corrupted: Heat flow error (+225). 01415_ Beam Rifle destroyed. 01417_ as-36174 destroyed. 01420_ The unstable cave ceiling collapses. 01420_ Crushed by falling debris. 01424_ as-59170 destroyed. Map ----- +----------------------------------------------------+ | ?????????????????????????????????????????? | | ?????????????????????????????????????????? | | ?????????????????????????????????????????? | | ?????????????????????????????????????????? | | ?????????????????????????????????????????? | | ?????????????????????????????????????????? | | ?????????????????????????????????????????? | | ????????????????????????????###??????????? | | ???????????????????????????## #?????????? | | ???????????????????????????# ?????????? | | ?????????????????????????### ?????????? | | ?????????????????????????? ##???????? | | ????????????????????######?# #???##??? | | ??????????????????### # #?# #### #??? | | ???????????????#### # #?# #??? | | ???????????????# #### #???? | | ???????????????## #?## ###???? | | ???????????????# ##?## #?????? | | ???????????????# #??## #?????? | | ???????????????# #???# ##????? | | ???????????????# ##### #????? | | ???????????????# dd #????? | | ????????????#### ##### #????? | | ???????????## #???# ##????? | | ?????# ##### #?????## ##?????? | | ?????# % % @ #??????####??????? | | ?????????### #????????????????? | | ???????????### # ###????????????????? | | ???????????????# #??????????????????? | | | | | | | | | | | | | | | | | | | | | | | | | | | | | | | | | | | | | | | | | | | +----------------------------------------------------+ Best States ------------- Heat Dissipation 28 Energy Generation 14 Energy Capacity 280 Matter Stores 300 Matter Capacity 300 Sight Range 16 Terrain Scan Density 10 Armor Coverage 300 Core Shielding 20 Weapon Shielding 33 Evasion (%) 44 Offensive Hacking 10 Item Schematics ----------------- Lgt. Angular Momentum Engine | -9/Materials | Scanalyzed Datajack | -9/Materials | Scanalyzed Grenade Launcher | -9/Materials | Scanalyzed Imp. Heat Sink | -9/Materials | Scanalyzed Robot Schematics ------------------ None Fabricated ------------ Nothing Alien Tech Used ----------------- None Achievements -------------- None Challenges ------------ None Game ------ Seed BoreVariableMallet Manual? 0 Play Time 00:26:40 Cumulative 88.1 hours Start 2024.03.27 @ 14:47:20 End 2024.03.27 @ 15:13:33 Sessions 1 Manual Loads 0 Difficulty Rogue Special Mode None Game No. 84 Rogue 82 Adventurer 0 Explorer 2 Win Type - Total 0 Types 0/0/0/0/0/0/0/0/0 Lore% 24 Gallery% 38 Achievement% 24 Wizard Run 0 Options --------- Layout 1 ASCII 0 Keyboard 0 Movement Mouse Keybinds 0 Fullscreen 2 Font 48/Terminus Map View 50x35 Zoom Use 0% Tactical HUD 1 Map Filters NONE Filters NONE Steam 1 RUN: 3a276070-e5a7-4721-b7e9-f0cbc4d0b005